bitfinex/quotes_SOLUSD_20240912
["timestamp","ask_amount","ask_price","bid_price","bid_amount"]
[1726132669886,6.4766,135.23,135.18,14.76623635]
[1726132670187,2.10021343,135.22,135.18,14.76623635]
[1726132674308,0.25098,135.22,135.18,14.76623635]
[1726132681592,16.0871,135.21,135.18,14.76623635]
[1726132681792,0.12549,135.2,135.18,14.76623635]
[1726132682209,0.25098,135.2,135.18,14.76623635]
[1726132683214,0.12549,135.2,135.18,14.76623635]
[1726132685508,16.0871,135.21,135.18,14.76623635]
[1726132688209,16.0871,135.21,135.13,9.52737804]
[1726132688411,16.0871,135.21,135.18,14.76623635]
[1726132692951,0.12549,135.2,135.18,14.76623635]
[1726132693107,6.1464,135.19,135.16,14.76623635]
[1726132693428,0.12549,135.18,135.16,14.76623635]
[1726132694720,6.1464,135.19,135.16,24.01015817]
[1726132694915,6.1464,135.19,135.18,14.76623635]
[1726132695116,6.27189,135.19,135.18,14.76623635]
[1726132697235,6.1464,135.19,135.18,14.76623635]
[1726132701517,6.1464,135.19,135.16,14.76623635]
[1726132701836,0.12549,135.18,135.17,4.11928539]
[1726132702140,0.12549,135.18,135.16,14.76623635]
[1726132702836,15.5939,135.17,135.13,15.02636505]
[1726132703055,1.84991955,135.16,135.13,15.02636505]
[1726132703212,0.12549,135.16,135.13,15.02636505]
[1726132703416,0.25098,135.16,135.15,14.76623635]
[1726132703612,15.5939,135.17,135.15,14.76623635]
[1726132715246,15.5939,135.17,135.13,0.2601287]
[1726132715456,0.25098,135.16,135.13,15.02636505]
[1726132715835,6.5687,135.15,135.13,0.2601287]
[1726132716144,2.10120608,135.14,135.13,0.2601287]
[1726132716649,0.25098,135.14,135.13,0.2601287]
[1726132720954,6.5687,135.15,135.13,0.2601287]
[1726132724051,6.5687,135.15,135.14,14.76623635]
[1726132724258,15.5939,135.17,135.14,14.76623635]
[1726132734563,15.5939,135.17,135.16,14.76623635]
[1726132736452,15.5939,135.17,135.13,0.2601287]
[1726132736647,15.5939,135.17,135.15,14.76623635]
[1726132747260,6.3679,135.19,135.15,14.76623635]
[1726132747458,6.3679,135.19,135.17,14.76623635]
[1726132751279,6.3679,135.19,135.13,31.8169708]
[1726132751478,0.25098,135.18,135.14,14.76623635]
[1726132752183,2.10086272,135.18,135.14,14.76623635]
[1726132752390,16.0922,135.17,135.13,0.2601287]
[1726132752570,2.10099266,135.16,135.13,0.2601287]
[1726132754158,0.25098,135.16,135.13,0.2601287]
[1726132754758,6.1772,135.15,135.13,0.2601287]
[1726132754967,2.10123676,135.14,135.13,0.2601287]
[1726132755699,0.25098,135.14,135.13,0.2601287]
[1726132765693,0.12549,135.14,135.13,0.2601287]
[1726132765879,6.1772,135.15,135.13,0.2601287]
[1726132766774,6.1772,135.15,135.13,4.38079309]
[1726132767590,6.1772,135.15,135.13,0.2601287]
[1726132768004,6.1772,135.15,135.13,4.38083294]
[1726132768172,6.1772,135.15,135.13,20.2601287]
[1726132768703,6.1772,135.15,135.13,24.38082859]
[1726132768995,6.1772,135.15,135.13,29.50752822]
[1726132769805,6.1772,135.15,135.13,20.2601287]
[1726132770676,6.1772,135.15,135.13,29.50747076]
[1726132771693,6.1772,135.15,135.13,20.2601287]
[1726132777881,6.1772,135.15,135.13,15.02636505]
[1726132778082,6.1772,135.15,135.14,20.0]
[1726132780485,6.1772,135.15,135.13,0.2601287]
[1726132780806,6.1772,135.15,135.13,20.2601287]
[1726132805517,6.0864,135.19,135.18,14.76623635]
[1726132805827,16.1593,135.21,135.18,14.76623635]
[1726132806125,16.1593,135.21,135.2,14.76623635]
[1726132814043,16.1593,135.21,135.13,9.52765575]
[1726132814343,2.10043313,135.2,135.15,14.76623635]
[1726132814523,0.25098,135.2,135.15,14.76623635]
[1726132815347,0.25098,135.2,135.17,14.76623635]
[1726132816852,23.17462265,135.25,135.19,14.76623635]
[1726132817049,15.5153,135.25,135.23,14.76623635]
[1726132827853,0.25098,135.24,135.16,23.776884]
[1726132828037,0.25098,135.24,135.18,23.776884]
[1726132828236,2.09990996,135.24,135.2,14.76623635]
[1726132828649,0.25098,135.24,135.2,14.76623635]
[1726132829436,2.10011896,135.24,135.2,14.76623635]
[1726132829649,0.25098,135.24,135.2,14.76623635]
[1726132837268,0.25098,135.24,135.19,20.0]
[1726132837468,6.0764,135.23,135.19,20.0]
[1726132837654,15.63158,135.22,135.16,14.76623635]
[1726132837864,1.84938773,135.21,135.17,20.0]
[1726132838171,2.10038984,135.2,135.17,25.97256533]
[1726132838374,2.10038984,135.2,135.17,20.0]
[1726132838671,0.25098,135.2,135.17,20.0]
[1726132838851,0.25098,135.21,135.17,20.0]
[1726132839451,0.25098,135.21,135.17,25.9726745]
[1726132839649,0.25098,135.21,135.17,20.0]
[1726132839958,0.25098,135.21,135.17,25.97268557]
[1726132840670,0.25098,135.21,135.17,20.0]
[1726132844480,0.25098,135.21,135.18,20.73881079]
[1726132844784,15.3806,135.22,135.2,14.76623635]
[1726132845146,6.0764,135.23,135.21,5.97126501]
[1726132845349,6.0764,135.23,135.22,14.76623635]
[1726132847757,6.0764,135.23,135.22,34.76623635]
[1726132848476,15.7232,135.25,135.22,40.73726337]
[1726132848682,15.7232,135.25,135.24,14.76623635]
[1726132850479,15.7232,135.25,135.24,20.73667651]
[1726132851373,15.7232,135.25,135.24,14.76623635]
[1726132852480,15.7232,135.25,135.22,34.76623635]
[1726132852695,15.7232,135.25,135.23,5.97071981]
[1726132852871,15.7232,135.25,135.22,34.76623635]
[1726132853180,15.7232,135.25,135.23,5.97084745]
[1726132853373,15.7232,135.25,135.22,34.76623635]
[1726132856881,15.7232,135.25,135.24,14.76623635]
[1726132864092,6.4275,135.26,135.24,14.76623635]
[1726132864286,29.82750554,135.29,135.25,20.0]
[1726132864464,22.1723,135.29,135.26,14.76623635]
[1726132870081,22.1723,135.29,135.25,34.76623635]
[1726132870275,0.12549,135.28,135.25,34.76623635]
[1726132870500,0.12549,135.28,135.25,20.0]
[1726132870699,0.12549,135.28,135.23,14.76623635]
[1726132870700,0.12549,135.28,135.24,20.0]
[1726132870998,0.12549,135.28,135.25,14.76623635]
[1726132871986,22.1723,135.29,135.25,14.76623635]
[1726132884004,0.12549,135.28,135.25,14.76623635]
[1726132884374,0.12549,135.28,135.24,20.0]
[1726132884580,0.12549,135.28,135.24,14.76623635]
[1726132884807,0.12549,135.28,135.25,20.0]
[1726132887581,0.12549,135.28,135.2,23.776884]
[1726132887899,0.12549,135.26,135.22,14.76623635]
[1726132888119,0.12549,135.26,135.23,20.0]
[1726132894109,0.12549,135.26,135.22,14.76623635]
[1726132894110,22.9221,135.25,135.22,14.76623635]
[1726132894311,0.12549,135.24,135.22,14.76623635]
[1726132894492,0.12549,135.24,135.2,14.76623635]
[1726132894811,0.25098,135.24,135.21,20.0]
[1726132895019,0.25098,135.24,135.2,14.76623635]
[1726132895313,2.1000219,135.24,135.18,14.76623635]
[1726132896709,2.1000219,135.24,135.19,20.0]
[1726132896915,22.7259,135.23,135.19,20.0]
[1726132897209,0.25098,135.22,135.18,14.76623635]
[1726132899020,22.7259,135.23,135.2,14.76623635]
[1726132900305,0.12549,135.22,135.2,14.76623635]
[1726132903234,0.12549,135.22,135.18,14.76623635]
[1726132903398,0.25098,135.22,135.18,14.76623635]
[1726132913230,0.25098,135.22,135.16,14.76623635]
[1726132913417,0.25098,135.22,135.17,20.0]
[1726132915218,2.10034242,135.22,135.17,20.0]
[1726132915531,21.6627,135.21,135.14,14.76623635]
[1726132915695,21.6627,135.21,135.16,14.76623635]
[1726132915696,0.25098,135.2,135.16,14.76623635]
[1726132920313,0.12549,135.2,135.18,14.76623635]
[1726132921406,21.6627,135.21,135.18,14.76623635]
[1726132921918,21.6627,135.21,135.2,14.76623635]
[1726132922832,21.6429,135.26,135.2,14.76623635]
[1726132923136,21.6429,135.26,135.22,14.76623635]
[1726132925737,0.25098,135.25,135.22,14.76623635]
[1726132925930,0.25098,135.25,135.21,20.0]
[1726132926112,0.25098,135.25,135.21,14.76623635]
[1726132926311,0.25098,135.25,135.22,20.0]
[1726132926507,0.25098,135.25,135.21,14.76623635]
[1726132935726,0.25098,135.25,135.23,14.76623635]
[1726132937443,0.12549,135.25,135.23,14.76623635]
[1726132937614,21.6429,135.26,135.23,14.76623635]
[1726132948824,0.12549,135.25,135.23,14.76623635]
[1726132951342,21.6429,135.26,135.23,14.76623635]
[1726132954445,21.6429,135.26,135.25,14.76623635]
[1726132959944,6.2142,135.26,135.25,14.76623635]
[1726132960161,0.2601287,135.27,135.25,34.76623635]
[1726132960354,0.2601287,135.27,135.25,14.76623635]
[1726132973585,0.2601287,135.27,135.26,5.96983453]
[1726132976062,0.2601287,135.27,135.26,5.96982787]
[1726132988695,0.2601287,135.27,135.26,25.96982787]
[1726132988873,0.2601287,135.31,135.26,25.96982787]
[1726132989077,0.2601287,135.31,135.3,14.76623635]
[1726132989387,0.2601287,135.31,135.26,20.0]
[1726132989388,0.2601287,135.31,135.28,14.76623635]
[1726132989591,0.2601287,135.31,135.26,20.0]
[1726132989787,0.2601287,135.31,135.27,14.76623635]
[1726132990094,0.2601287,135.31,135.21,43.776884]
[1726132990306,0.25098,135.3,135.26,14.76623635]
[1726132992989,0.12549,135.3,135.26,14.76623635]
[1726132994803,0.25098,135.3,135.26,14.76623635]
[1726132995287,22.5733,135.29,135.26,14.76623635]
[1726133001277,0.12549,135.28,135.26,14.76623635]
[1726133001693,0.12549,135.28,135.21,20.0]
[1726133001999,0.25098,135.28,135.25,14.76623635]
[1726133006706,0.12549,135.28,135.25,14.76623635]
[1726133008185,0.12549,135.28,135.27,14.76623635]
[1726133010396,0.12549,135.28,135.19,23.776884]
[1726133010601,0.25098,135.28,135.25,14.76623635]
[1726133022489,6.5326,135.27,135.2,20.0]
[1726133022689,6.5326,135.27,135.22,14.76623635]
[1726133022690,0.25098,135.26,135.22,14.76623635]
[1726133024117,0.25098,135.26,135.23,20.0]
[1726133028111,0.25098,135.26,135.22,14.76623635]
[1726133028315,0.25098,135.26,135.23,20.0]
[1726133029615,0.25098,135.26,135.22,14.76623635]
[1726133032830,0.25098,135.26,135.24,14.76623635]
[1726133037813,0.25098,135.26,135.18,4.1178949]
[1726133038128,0.25098,135.26,135.23,14.76623635]
[1726133038338,0.12549,135.26,135.23,14.76623635]
[1726133045842,0.25098,135.26,135.23,14.76623635]
[1726133047736,0.12549,135.26,135.23,14.76623635]
[1726133053463,0.12549,135.26,135.19,9.26463026]
[1726133053664,1.84852897,135.28,135.2,34.76623635]
[1726133053665,22.518,135.25,135.2,34.76623635]
[1726133053956,0.12549,135.24,135.2,20.0]
[1726133054140,22.518,135.23,135.19,14.76623635]
[1726133054335,0.25098,135.22,135.19,14.76623635]
[1726133057039,0.12549,135.22,135.19,14.76623635]
[1726133059966,22.518,135.23,135.21,14.76623635]
[1726133064160,22.518,135.23,135.17,0.2601287]
[1726133064361,22.518,135.23,135.2,14.76623635]
[1726133064551,22.518,135.23,135.21,20.0]
[1726133067355,22.518,135.23,135.22,14.76623635]
[1726133070062,22.518,135.23,135.21,20.0]
[1726133070253,22.518,135.23,135.21,14.76623635]
[1726133077055,7.68125264,135.27,135.21,14.76623635]
[1726133077056,23.1342,135.26,135.21,14.76623635]
[1726133077263,23.1342,135.26,135.23,14.76623635]
[1726133082360,23.1342,135.26,135.25,14.76623635]
[1726133083269,21.6198287,135.31,135.25,34.76623635]
[1726133083476,21.6198287,135.31,135.27,14.76623635]
[1726133085773,0.12549,135.3,135.27,14.76623635]
[1726133090496,21.6198287,135.31,135.27,14.76623635]
[1726133090808,21.6198287,135.31,135.29,14.76623635]
[1726133101817,0.12549,135.3,135.29,14.76623635]
[1726133102189,21.6198287,135.31,135.29,14.76623635]
[1726133102914,21.6198287,135.31,135.23,23.776884]
[1726133103082,0.25098,135.3,135.24,35.61]
[1726133103288,0.25098,135.3,135.26,14.76623635]
[1726133103495,0.25098,135.3,135.24,35.61]
[1726133103812,0.25098,135.3,135.25,14.76623635]
[1726133104887,22.4064,135.29,135.2,9.25381484]
[1726133105085,0.25098,135.28,135.23,14.76623635]
[1726133109317,21.9482,135.27,135.23,14.76623635]
[1726133109526,0.25098,135.26,135.23,14.76623635]
[1726133120104,0.25098,135.26,135.2,4.1178823]
[1726133120299,24.027864,135.26,135.21,5.97074696]
[1726133120602,24.027864,135.26,135.22,5.97074696]
[1726133120832,24.027864,135.26,135.2,18.88411865]
[1726133121015,24.027864,135.26,135.21,20.0]
[1726133122626,24.027864,135.26,135.2,34.76623635]
[1726133123344,24.027864,135.26,135.2,44.02221243]
[1726133123506,24.027864,135.26,135.2,34.76623635]
[1726133127943,6.3954,135.25,135.2,34.76623635]
[1726133128127,0.25098,135.24,135.2,34.76623635]
[1726133132244,6.3954,135.25,135.2,34.76623635]
[1726133132429,6.3954,135.25,135.22,14.76623635]
[1726133132929,16.6566,135.24,135.2,20.0]
[1726133133227,16.6566,135.24,135.2,14.76623635]
[1726133134638,6.4525,135.23,135.19,14.76623635]
[1726133134851,0.25098,135.22,135.19,14.76623635]
[1726133135344,0.12549,135.22,135.19,14.76623635]
[1726133135539,6.4525,135.23,135.19,14.76623635]
[1726133143243,6.4525,135.23,135.21,14.76623635]
[1726133144050,6.4525,135.23,135.19,14.76623635]
[1726133146149,6.4525,135.23,135.18,20.0]
[1726133146150,6.4525,135.23,135.21,14.76623635]
[1726133146357,16.6566,135.24,135.21,14.76623635]
[1726133146658,6.5184,135.27,135.23,14.76623635]
[1726133146961,6.5184,135.27,135.25,14.76623635]
[1726133152337,16.1931,135.28,135.25,14.76623635]
[1726133152663,21.5788287,135.31,135.27,14.76623635]
[1726133154044,21.5788287,135.31,135.3,14.76623635]
[1726133157444,21.5788287,135.31,135.28,14.76623635]
[1726133160950,0.12549,135.3,135.28,14.76623635]
[1726133161358,21.5788287,135.31,135.28,14.76623635]
[1726133162268,21.5788287,135.31,135.26,20.0]
[1726133162269,0.25098,135.3,135.26,20.0]
[1726133162455,0.25098,135.3,135.26,14.76623635]
[1726133176669,0.12549,135.3,135.28,14.76623635]
[1726133176875,21.5788287,135.31,135.28,14.76623635]
[1726133181347,21.5788287,135.31,135.22,20.0]
[1726133181673,0.12549,135.3,135.26,14.76623635]
[1726133181871,0.25098,135.3,135.26,14.76623635]
[1726133189481,0.25098,135.3,135.27,5.96953317]
[1726133189679,0.25098,135.3,135.26,14.76623635]
[1726133189866,0.25098,135.3,135.27,5.96953317]
[1726133190065,0.25098,135.3,135.26,14.76623635]
[1726133190384,0.25098,135.3,135.27,5.96953317]
[1726133190570,0.25098,135.3,135.26,14.76623635]
[1726133190772,0.25098,135.3,135.27,5.96953204]
[1726133190971,0.25098,135.3,135.26,14.76623635]
[1726133191173,0.25098,135.3,135.27,5.96953317]
[1726133191478,0.25098,135.3,135.26,14.76623635]
[1726133191667,0.25098,135.3,135.27,5.96953317]
[1726133191864,0.25098,135.3,135.26,14.76623635]
[1726133192188,0.25098,135.3,135.28,14.76623635]
[1726133193093,21.5788287,135.31,135.28,14.76623635]
[1726133194286,21.5788287,135.31,135.3,14.76623635]
[1726133200084,0.2601287,135.31,135.3,40.73561831]
[1726133200279,0.2601287,135.31,135.3,34.76623635]
[1726133200594,0.2601287,135.31,135.3,40.73550996]
[1726133201483,0.2601287,135.31,135.3,34.76623635]
[1726133201685,0.2601287,135.31,135.3,40.73550773]
[1726133201996,0.2601287,135.31,135.3,34.76623635]
[1726133204382,0.2601287,135.31,135.3,40.73552984]
[1726133205903,0.2601287,135.31,135.3,40.73548561]
[1726133208988,0.2601287,135.31,135.3,40.73475242]
[1726133209203,0.2601287,135.31,135.3,25.96851607]
[1726133209400,0.2601287,135.31,135.3,40.73475242]
[1726133215604,0.2601287,135.31,135.3,40.73475795]
[1726133217702,0.2601287,135.35,135.3,40.73475795]
[1726133218006,0.2601287,135.35,135.33,14.76623635]
[1726133218208,0.2601287,135.35,135.34,20.0]
[1726133221410,0.2601287,135.35,135.34,14.76623635]
[1726133221729,0.2601287,135.35,135.34,34.76623635]
[1726133223010,0.2601287,135.35,135.34,20.0]
[1726133223323,0.2601287,135.35,135.34,14.76623635]
[1726133223513,0.2601287,135.35,135.34,34.76623635]
[1726133228130,0.2601287,135.35,135.34,20.0]
[1726133228335,0.2601287,135.35,135.29,25.96786557]
[1726133228508,0.2601287,135.35,135.34,14.76623635]
[1726133228710,0.2601287,135.35,135.34,34.76623635]
[1726133231927,0.2601287,135.35,135.21,4.11168594]
[1726133232132,0.12549,135.34,135.31,14.76623635]
[1726133233029,0.12549,135.34,135.26,4.11569583]
[1726133233216,22.447,135.33,135.3,14.76623635]
[1726133233433,22.447,135.33,135.25,4.11569583]
[1726133233626,22.447,135.33,135.3,14.76623635]
[1726133234811,22.447,135.33,135.32,14.76623635]
[1726133236309,22.447,135.33,135.3,14.76623635]
[1726133239724,0.25098,135.32,135.27,4.11596369]
[1726133240125,25.87579669,135.32,135.27,18.88220004]
[1726133240424,24.027864,135.32,135.27,18.88220004]
[1726133241225,22.2259,135.31,135.27,18.88220004]
[1726133241436,0.12549,135.3,135.27,18.88220004]
[1726133241751,0.25098,135.3,135.28,20.0]
[1726133243350,0.12549,135.3,135.28,20.0]
[1726133244234,0.25098,135.3,135.28,20.0]
[1726133254049,0.12549,135.3,135.28,20.0]
[1726133255963,22.2259,135.31,135.28,20.0]
[1726133264964,0.12549,135.3,135.27,24.11613695]
[1726133265167,0.12549,135.3,135.27,20.0]
[1726133265656,24.027864,135.3,135.25,11.56401143]
[1726133265864,24.027864,135.3,135.26,20.0]
[1726133267654,24.027864,135.3,135.25,20.0]
[1726133270662,23.55525193,135.29,135.22,14.76623635]
[1726133270864,24.027864,135.28,135.22,14.76623635]
[1726133272174,24.027864,135.28,135.23,20.0]
[1726133274383,6.5143,135.27,135.23,20.0]
[1726133274556,16.372,135.25,135.21,15.02636505]
[1726133274766,16.372,135.25,135.22,20.0]
[1726133276755,16.372,135.25,135.21,0.2601287]
[1726133276756,0.12549,135.24,135.21,0.2601287]
[1726133276975,0.12549,135.24,135.21,20.2601287]
[1726133277484,6.3195,135.23,135.21,20.2601287]
[1726133277657,6.3195,135.23,135.21,0.2601287]
[1726133281154,6.3195,135.23,135.21,15.02636505]
[1726133282682,16.372,135.25,135.21,15.02636505]
[1726133282881,16.372,135.25,135.23,14.76623635]
[1726133290485,6.1525,135.27,135.23,14.76623635]
[1726133290691,6.1525,135.27,135.25,14.76623635]
[1726133304317,6.1525,135.27,135.26,5.9689912]
[1726133305419,6.1525,135.27,135.26,5.96899007]
[1726133305726,6.40348,135.27,135.26,5.96899007]
[1726133306524,6.40348,135.27,135.22,9.25466073]
[1726133306525,6.40348,135.27,135.22,24.02089708]
[1726133306721,0.12549,135.26,135.23,25.96907481]
[1726133306908,0.12549,135.26,135.24,5.96907481]
[1726133307109,0.12549,135.26,135.25,5.96907481]
[1726133308913,0.12549,135.26,135.25,5.96909364]
[1726133309715,0.25098,135.26,135.25,5.96909364]
[1726133312722,0.25098,135.26,135.25,5.96950858]
[1726133313436,16.39598,135.26,135.25,5.96950858]
[1726133315136,40.172864,135.26,135.25,5.96950858]
[1726133319634,40.172864,135.26,135.21,15.02636505]
[1726133319810,23.776884,135.25,135.21,15.02636505]
[1726133320017,0.25098,135.24,135.22,5.96972776]
[1726133320215,0.25098,135.24,135.23,5.96972776]
[1726133323048,0.25098,135.24,135.21,0.2601287]
[1726133323342,0.25098,135.24,135.22,5.97049438]
[1726133323638,0.25098,135.24,135.21,0.2601287]
[1726133344431,6.2744,135.23,135.21,0.2601287]
[1726133344635,16.24548,135.22,135.21,0.2601287]
[1726133345839,40.022364,135.22,135.21,0.2601287]
[1726133359349,41.87189298,135.22,135.21,0.2601287]
[1726133359773,40.022364,135.22,135.21,0.2601287]
[1726133365460,15.9945,135.22,135.21,0.2601287]
[1726133366777,16.24548,135.22,135.21,0.2601287]
[1726133371171,40.022364,135.22,135.21,0.2601287]
[1726133374587,64.12189773,135.22,135.21,0.2601287]
[1726133375371,71.85607156,135.22,135.21,0.2601287]
[1726133376166,78.51187156,135.22,135.21,0.2601287]
[1726133376366,84.74747156,135.22,135.21,0.2601287]
[1726133377371,28.9069,135.2,135.17,0.2601287]
[1726133377557,38.940384,135.18,135.17,0.2601287]
[1726133377755,39.191364,135.18,135.17,0.2601287]
[1726133380679,15.41448,135.18,135.17,0.2601287]
[1726133381083,39.191364,135.18,135.17,0.2601287]
[1726133385686,46.92888192,135.18,135.17,0.2601287]
[1726133387800,15.41448,135.18,135.17,0.2601287]
[1726133389006,39.191364,135.18,135.17,0.2601287]
[1726133392890,41.04148597,135.18,135.17,0.2601287]
[1726133394109,39.191364,135.18,135.17,0.2601287]
[1726133395103,41.04152645,135.18,135.17,0.2601287]
[1726133395606,39.191364,135.18,135.17,0.2601287]
[1726133396990,61.451364,135.18,135.17,0.2601287]
[1726133398593,46.92479902,135.18,135.17,0.2601287]
[1726133398995,15.28899,135.18,135.17,0.2601287]
[1726133399398,23.0201918,135.18,135.17,0.2601287]
[1726133400303,39.191364,135.18,135.17,0.2601287]
[1726133400611,46.92254466,135.18,135.17,0.2601287]
[1726133401810,41.04131932,135.18,135.17,0.2601287]
[1726133402012,46.92036803,135.18,135.17,0.2601287]
[1726133402834,39.191364,135.18,135.17,0.2601287]
[1726133403116,46.92358238,135.18,135.17,0.2601287]
[1726133405111,48.7737502,135.18,135.17,0.2601287]
[1726133405896,46.92358238,135.18,135.17,0.2601287]
[1726133407199,69.18358238,135.18,135.17,0.2601287]
[1726133408609,46.92358238,135.18,135.17,0.2601287]
[1726133408814,39.191364,135.18,135.17,0.2601287]
[1726133409016,46.92435594,135.18,135.17,0.2601287]
[1726133409317,23.02198194,135.18,135.17,0.2601287]
[1726133410807,46.92435594,135.18,135.17,0.2601287]
[1726133414912,69.18435594,135.18,135.17,0.2601287]
[1726133415117,75.84205594,135.18,135.17,0.2601287]
[1726133416798,77.69231888,135.18,135.17,0.2601287]
[1726133417715,77.69231637,135.18,135.17,0.2601287]
[1726133419727,77.69231637,135.18,135.17,0.2601287]
[1726133426610,75.84205594,135.18,135.17,0.2601287]
[1726133426825,77.69248453,135.18,135.17,0.2601287]
[1726133428044,75.84205594,135.18,135.17,0.2601287]
[1726133435142,7.73299194,135.18,135.17,0.2601287]
[1726133436434,31.76085594,135.18,135.17,0.2601287]
[1726133438346,24.027864,135.18,135.17,0.2601287]
[1726133439051,25.87782056,135.18,135.17,0.2601287]
[1726133439739,24.027864,135.18,135.17,0.2601287]
[1726133440243,25.87781994,135.18,135.17,0.2601287]
[1726133441057,25.87781994,135.18,135.17,0.2601287]
[1726133443666,24.027864,135.18,135.17,0.2601287]
[1726133444196,7.73498867,135.2,135.17,0.2601287]
[1726133444358,29.99498867,135.2,135.17,0.2601287]
[1726133444854,7.73498867,135.2,135.17,0.2601287]
[1726133445240,24.027864,135.19,135.17,0.2601287]
[1726133450345,0.25098,135.19,135.17,0.2601287]
[1726133451179,23.91214513,135.22,135.17,0.2601287]
[1726133451372,1.84950346,135.21,135.17,0.2601287]
[1726133451666,23.91214513,135.22,135.17,0.2601287]
[1726133451851,7.73554513,135.22,135.17,0.2601287]
[1726133452062,29.3107,135.26,135.17,0.2601287]
[1726133452265,7.73404918,135.24,135.17,0.2601287]
[1726133453147,23.776884,135.23,135.17,0.2601287]
[1726133453356,0.12549,135.22,135.17,0.2601287]
[1726133454030,0.25098,135.22,135.17,0.2601287]
[1726133454852,7.73404918,135.24,135.18,14.76623635]
[1726133455454,22.6568,135.26,135.18,14.76623635]
[1726133455762,30.39206958,135.26,135.18,14.76623635]
[1726133456181,24.027864,135.25,135.18,14.76623635]
[1726133463257,23.776884,135.23,135.17,0.2601287]
[1726133463600,0.12549,135.22,135.17,20.2601287]
[1726133463872,0.25098,135.22,135.17,20.2601287]
[1726133484055,0.25098,135.22,135.18,14.76623635]
[1726133484178,0.12549,135.22,135.18,14.76623635]
[1726133484379,6.653,135.28,135.2,14.76623635]
[1726133484884,7.73491169,135.26,135.2,14.76623635]
[1726133485567,23.902374,135.25,135.2,14.76623635]
[1726133485772,0.12549,135.24,135.2,14.76623635]
[1726133487289,0.12549,135.24,135.17,0.2601287]
[1726133487489,0.12549,135.24,135.17,15.02636505]
[1726133487577,0.12549,135.24,135.18,20.0]
[1726133488570,23.776884,135.23,135.17,0.2601287]
[1726133488776,0.25098,135.22,135.17,20.2601287]
[1726133488989,23.776884,135.21,135.17,20.2601287]
[1726133489196,2.10041872,135.2,135.17,20.2601287]
[1726133489580,0.25098,135.2,135.17,20.2601287]
[1726133490089,0.25098,135.2,135.17,0.2601287]
[1726133490476,2.10051419,135.2,135.17,0.2601287]
[1726133491077,0.25098,135.2,135.17,0.2601287]
[1726133494723,2.10060135,135.2,135.17,0.2601287]
[1726133496519,0.25098,135.2,135.17,0.2601287]
[1726133496715,2.10063915,135.2,135.17,0.2601287]
[1726133497621,0.25098,135.2,135.17,0.2601287]
[1726133506024,0.12549,135.2,135.17,0.2601287]
[1726133506217,1.97500806,135.2,135.17,0.2601287]
[1726133506620,1.97500303,135.2,135.17,0.2601287]
[1726133507494,0.12549,135.19,135.17,0.2601287]
[1726133508316,0.25098,135.2,135.17,0.2601287]
[1726133510625,2.10045624,135.2,135.17,0.2601287]
[1726133510808,2.10045624,135.2,135.18,5.97281376]
[1726133511113,2.10045624,135.2,135.17,0.2601287]
[1726133511306,2.10045624,135.2,135.18,5.97281263]
[1726133511528,2.10043772,135.2,135.17,0.2601287]
[1726133511831,0.25098,135.2,135.18,5.97281263]
[1726133512138,0.25098,135.2,135.17,0.2601287]
[1726133512335,0.25098,135.2,135.18,5.97278179]
[1726133512508,0.25098,135.2,135.17,0.2601287]
[1726133512812,0.25098,135.2,135.18,5.97278179]
[1726133513008,0.25098,135.2,135.17,0.2601287]
[1726133513205,0.25098,135.2,135.18,5.97281376]
[1726133513431,0.25098,135.2,135.17,0.2601287]
[1726133513723,0.25098,135.2,135.18,5.97281263]
[1726133513930,0.25098,135.2,135.17,0.2601287]
[1726133514346,0.25098,135.2,135.18,5.97281376]
[1726133514534,0.25098,135.2,135.17,0.2601287]
[1726133514735,0.25098,135.2,135.18,5.97268589]
[1726133514932,0.25098,135.2,135.17,0.2601287]
[1726133515134,0.25098,135.2,135.18,5.97268596]
[1726133515345,0.25098,135.2,135.19,5.97228017]
[1726133520558,0.25098,135.2,135.17,0.2601287]
[1726133520922,0.25098,135.2,135.19,5.97222933]
[1726133523020,0.25098,135.2,135.17,0.2601287]
[1726133523335,0.25098,135.2,135.18,5.97222984]
[1726133523528,0.25098,135.2,135.19,5.97222984]
[1726133523927,0.25098,135.2,135.17,0.2601287]
[1726133524133,0.25098,135.2,135.18,5.97265776]
[1726133524324,0.25098,135.2,135.17,0.2601287]
[1726133524525,0.25098,135.2,135.18,5.97266002]